[Event "GrandPrix_29.05"]
[Site "Chess.com"]
[Date "2020.05.29"]
[Round "2"]
[White "khekhm"]
[Black "Baron_von_Koenig"]
[Result "1/2-1/2"]
[WhiteElo "2382"]
[BlackElo "2207"]
[TimeControl "600+2"]
[EndTime "9:57:52 PDT"]
[Termination "Game drawn by agreement"]

1. e4 {[%clk 0:10:01.9]} 1... d5 {[%clk 0:10:00.4]} 2. exd5 {[%clk 0:09:53.2]}
2... Qxd5 {[%clk 0:10:02.3]} 3. Nc3 {[%clk 0:09:53.7]} 3... Qd8 {[%clk
0:10:04.2]} 4. d4 {[%clk 0:09:53.6]} 4... Qd6 {[%clk 0:10:06.1]} 5. Nf3 {[%clk
0:09:50.8]} 5... Nf6 {[%clk 0:10:08]} 6. h3 {[%clk 0:09:46.8]} 6... a6 {[%clk
0:10:08.4]} 7. Bc4 {[%clk 0:09:20.8]} 7... b5 {[%clk 0:10:07.9]} 8. Bb3 {[%clk
0:09:21.9]} 8... Bb7 {[%clk 0:10:07.1]} 9. O-O {[%clk 0:09:22.5]} 9... c5 {[%clk
0:10:05.7]} 10. dxc5 {[%clk 0:09:22.7]} 10... Qxd1 {[%clk 0:10:06.1]} 11. Rxd1
{[%clk 0:09:20.5]} 11... e6 {[%clk 0:10:07.3]} 12. Ne5 {[%clk 0:08:44.2]} 12...
Bxc5 {[%clk 0:10:03.5]} 13. Bg5 {[%clk 0:08:39.6]} 13... Nbd7 {[%clk 0:09:08.2]}
14. Nxd7 {[%clk 0:08:39.5]} 14... Nxd7 {[%clk 0:09:09.1]} 15. a4 {[%clk
0:08:35.5]} 15... b4 {[%clk 0:09:07.2]} 16. Ne2 {[%clk 0:08:34.6]} 16... Nf6
{[%clk 0:08:57.1]} 17. Bxf6 {[%clk 0:08:23.9]} 17... gxf6 {[%clk 0:08:57.6]} 18.
a5 {[%clk 0:07:35.8]} 18... Ke7 {[%clk 0:08:08]} 19. Kf1 {[%clk 0:07:27.3]}
19... Rhg8 {[%clk 0:08:05.4]} 20. f3 {[%clk 0:07:09]} 20... Rad8 {[%clk
0:07:59.4]} 21. Nf4 {[%clk 0:07:04.4]} 21... Rd4 {[%clk 0:06:10]} 22. Nd3 {[%clk
0:06:35.7]} 22... Ba7 {[%clk 0:05:29.6]} 23. Nf2 {[%clk 0:06:13.6]} 23... f5
{[%clk 0:05:14.7]} 24. Rd3 {[%clk 0:05:42.9]} 24... Bc6 {[%clk 0:05:12.6]} 25.
Rxd4 {[%clk 0:05:29.6]} 25... Bxd4 {[%clk 0:05:12.8]} 26. Bc4 {[%clk 0:05:31.2]}
26... Bxb2 {[%clk 0:04:56]} 27. Rb1 {[%clk 0:05:12.7]} 27... Bc3 {[%clk
0:04:50.1]} 28. Nd3 {[%clk 0:05:13.3]} 28... Rb8 {[%clk 0:04:41.6]} 29. Bxa6
{[%clk 0:05:05.1]} 29... Ra8 {[%clk 0:04:42.5]} 30. Bc4 {[%clk 0:05:05.9]} 30...
Rxa5 {[%clk 0:04:41.4]} 31. Nxb4 {[%clk 0:05:06.7]} 31... Bd7 {[%clk 0:04:12.9]}
32. Nd3 {[%clk 0:05:02]} 32... Kf6 {[%clk 0:03:55.8]} 33. Ke2 {[%clk 0:04:24.5]}
33... Ba4 {[%clk 0:03:39.6]} 34. Bb3 {[%clk 0:03:53.3]} 34... Bb5 {[%clk
0:03:40.5]} 35. Ke3 {[%clk 0:03:54.4]} 35... Ba6 {[%clk 0:03:35]} 36. Nf4 {[%clk
0:03:32]} 36... Re5+ {[%clk 0:03:20.6]} 37. Kf2 {[%clk 0:03:33.1]} 37... Bd4+
{[%clk 0:02:39.3]} 38. Kg3 {[%clk 0:03:30.2]} 38... Re3 {[%clk 0:02:40.2]} 39.
Kh4 {[%clk 0:02:12.7]} 39... Rc3 {[%clk 0:01:44.4]} 40. Nd3 {[%clk 0:00:36.4]}
40... Bxd3 {[%clk 0:01:38]} 41. cxd3 {[%clk 0:00:38.3]} 41... Bf2+ {[%clk
0:01:38.6]} 42. Kh5 {[%clk 0:00:38.5]} 42... Rxd3 {[%clk 0:01:39.7]} 43. Kh6
{[%clk 0:00:26.6]} 43... Be3+ {[%clk 0:01:12.2]} 44. Kxh7 {[%clk 0:00:26.9]}
44... Rd2 {[%clk 0:01:13.8]} 45. g4 {[%clk 0:00:20.4]} 45... Rh2 {[%clk
0:01:13.5]} 46. gxf5 {[%clk 0:00:14.7]} 46... Rxh3+ {[%clk 0:01:12.3]} 47. Kg8
{[%clk 0:00:16]} 47... exf5 {[%clk 0:00:21.7]} 48. Bd5 {[%clk 0:00:10]} 48...
Rg3+ {[%clk 0:00:20.3]} 49. Kf8 {[%clk 0:00:10.8]} 49... Bc5+ {[%clk 0:00:21.1]}
50. Ke8 {[%clk 0:00:12]} 50... Rg8+ {[%clk 0:00:21.5]} 51. Kd7 {[%clk
0:00:13.2]} 51... Bd4 {[%clk 0:00:20.9]} 52. Rb7 {[%clk 0:00:10.1]} 52... Rg7
{[%clk 0:00:17.8]} 53. Ke8 {[%clk 0:00:06.7]} 53... Ke5 {[%clk 0:00:18.3]} 54.
Bxf7 {[%clk 0:00:06.7]} 54... Kf4 {[%clk 0:00:19.6]} 55. Bd5 {[%clk 0:00:06.2]}
55... Rxb7 {[%clk 0:00:18.5]} 56. Bxb7 {[%clk 0:00:07]} 1/2-1/2

[Event "GrandPrix_29.05"]
[Site "Chess.com"]
[Date "2020.05.29"]
[Round "2"]
[White "EvgenyPigusov"]
[Black "Murad_Ibrahimli"]
[Result "0-1"]
[WhiteElo "2232"]
[BlackElo "2641"]
[TimeControl "600+2"]
[EndTime "9:57:56 PDT"]
[Termination "Murad_Ibrahimli won on time"]

1. Nf3 {[%clk 0:10:01.9]} 1... Nf6 {[%clk 0:09:59.7]} 2. c4 {[%clk 0:10:01.8]}
2... e6 {[%clk 0:09:56.6]} 3. g3 {[%clk 0:10:02.1]} 3... d5 {[%clk 0:09:56.4]}
4. Bg2 {[%clk 0:10:02]} 4... Be7 {[%clk 0:09:55.8]} 5. O-O {[%clk 0:10:01.4]}
5... O-O {[%clk 0:09:56.2]} 6. b3 {[%clk 0:10:00.6]} 6... b6 {[%clk 0:09:54.6]}
7. Bb2 {[%clk 0:09:58.7]} 7... Bb7 {[%clk 0:09:55.4]} 8. e3 {[%clk 0:09:57.2]}
8... c5 {[%clk 0:09:56.3]} 9. Nc3 {[%clk 0:09:51.4]} 9... Nc6 {[%clk 0:09:54.7]}
10. cxd5 {[%clk 0:09:51.2]} 10... exd5 {[%clk 0:09:52.2]} 11. d4 {[%clk
0:09:51.1]} 11... Re8 {[%clk 0:09:51.9]} 12. Rc1 {[%clk 0:09:47.3]} 12... Bf8
{[%clk 0:09:42.9]} 13. dxc5 {[%clk 0:09:29.1]} 13... bxc5 {[%clk 0:09:42.4]} 14.
Na4 {[%clk 0:08:02.6]} 14... Ne4 {[%clk 0:08:48.4]} 15. Nd2 {[%clk 0:07:49.7]}
15... Qa5 {[%clk 0:08:40.9]} 16. Nxe4 {[%clk 0:07:40.6]} 16... dxe4 {[%clk
0:08:39.5]} 17. Qg4 {[%clk 0:06:08.7]} 17... Ne5 {[%clk 0:08:21]} 18. Bxe5
{[%clk 0:06:05.5]} 18... Rxe5 {[%clk 0:08:19.6]} 19. Rfd1 {[%clk 0:05:51.3]}
19... Bc6 {[%clk 0:08:10.3]} 20. Nc3 {[%clk 0:04:44.2]} 20... Rae8 {[%clk
0:08:02.1]} 21. Qe2 {[%clk 0:04:38.1]} 21... g6 {[%clk 0:07:15]} 22. Bf1 {[%clk
0:04:15.6]} 22... Rd8 {[%clk 0:06:46.3]} 23. Rxd8 {[%clk 0:03:52.8]} 23... Qxd8
{[%clk 0:06:43.9]} 24. Qd1 {[%clk 0:03:48.3]} 24... Qf6 {[%clk 0:05:54.9]} 25.
Bc4 {[%clk 0:03:33.1]} 25... Re8 {[%clk 0:04:33.9]} 26. Nd5 {[%clk 0:03:09.7]}
26... Qe5 {[%clk 0:04:32.5]} 27. Rc2 {[%clk 0:03:05.6]} 27... Kg7 {[%clk
0:03:25.5]} 28. Rd2 {[%clk 0:03:03.3]} 28... g5 {[%clk 0:03:00.4]} 29. Qh5
{[%clk 0:02:45.3]} 29... Re6 {[%clk 0:02:43.2]} 30. Qd1 {[%clk 0:02:23.3]} 30...
Rd6 {[%clk 0:02:04.7]} 31. Nc3 {[%clk 0:02:06.5]} 31... Rf6 {[%clk 0:02:03.9]}
32. Qc2 {[%clk 0:01:53]} 32... Rd6 {[%clk 0:01:36.1]} 33. Rxd6 {[%clk
0:01:47.6]} 33... Bxd6 {[%clk 0:01:34.7]} 34. Qd2 {[%clk 0:01:45]} 34... f5
{[%clk 0:01:29.5]} 35. Bd5 {[%clk 0:01:37.7]} 35... Be8 {[%clk 0:01:28]} 36. Bc4
{[%clk 0:01:36.3]} 36... Bh5 {[%clk 0:01:08.2]} 37. Be2 {[%clk 0:01:32.9]} 37...
Bg6 {[%clk 0:01:02.5]} 38. Nb5 {[%clk 0:01:31.6]} 38... Qa1+ {[%clk 0:00:52.9]}
39. Kg2 {[%clk 0:01:28]} 39... Be5 {[%clk 0:00:53.5]} 40. Nxa7 {[%clk 0:01:18]}
40... Bc3 {[%clk 0:00:47]} 41. Qc2 {[%clk 0:01:08.8]} 41... f4 {[%clk
0:00:28.1]} 42. gxf4 {[%clk 0:01:06.1]} 42... gxf4 {[%clk 0:00:27.9]} 43. exf4
{[%clk 0:01:01.9]} 43... e3 {[%clk 0:00:27.2]} 44. f5 {[%clk 0:01:01.1]} 44...
exf2 {[%clk 0:00:28.3]} 45. Bf1 {[%clk 0:00:50.4]} 45... Bf7 {[%clk 0:00:27.5]}
46. Qxf2 {[%clk 0:00:47.5]} 46... Bd5+ {[%clk 0:00:27]} 47. Kh3 {[%clk
0:00:47.3]} 47... Be5 {[%clk 0:00:16.3]} 48. Nb5 {[%clk 0:00:38.9]} 48... Qc1
{[%clk 0:00:15.5]} 49. f6+ {[%clk 0:00:25.8]} 49... Kh8 {[%clk 0:00:15.5]} 50.
f7 {[%clk 0:00:10.2]} 50... Qh6+ {[%clk 0:00:14.1]} 51. Kg4 {[%clk 0:00:07.4]}
51... Qg6+ {[%clk 0:00:12.5]} 52. Kh4 {[%clk 0:00:06.2]} 52... Bf6+ {[%clk
0:00:12.7]} 53. Kh3 {[%clk 0:00:07.4]} 53... Be6+ {[%clk 0:00:13.3]} 0-1

[Event "GrandPrix_29.05"]
[Site "Chess.com"]
[Date "2020.05.29"]
[Round "2"]
[White "ZefirKa"]
[Black "VladimirPotkin"]
[Result "1/2-1/2"]
[WhiteElo "2145"]
[BlackElo "1981"]
[TimeControl "600+2"]
[EndTime "9:57:57 PDT"]
[Termination "Game drawn by agreement"]

1. e4 {[%clk 0:10:01.9]} 1... c5 {[%clk 0:09:58.5]} 2. Nf3 {[%clk 0:10:02.7]}
2... e6 {[%clk 0:09:58.7]} 3. d4 {[%clk 0:10:03.9]} 3... cxd4 {[%clk 0:09:58.9]}
4. Nxd4 {[%clk 0:10:05.8]} 4... Nc6 {[%clk 0:09:57.2]} 5. Nc3 {[%clk 0:10:06.5]}
5... Qc7 {[%clk 0:09:57]} 6. Be2 {[%clk 0:09:59.7]} 6... Nf6 {[%clk 0:09:55.5]}
7. a3 {[%clk 0:09:34.3]} 7... a6 {[%clk 0:09:50.9]} 8. Be3 {[%clk 0:09:29.2]}
8... Be7 {[%clk 0:09:44.6]} 9. Qd2 {[%clk 0:09:07.5]} 9... O-O {[%clk
0:09:41.6]} 10. f4 {[%clk 0:09:08.5]} 10... b5 {[%clk 0:09:09]} 11. e5 {[%clk
0:08:53.8]} 11... Ne8 {[%clk 0:09:08.3]} 12. Nxc6 {[%clk 0:08:47.5]} 12... dxc6
{[%clk 0:09:07.1]} 13. Bf3 {[%clk 0:08:33.9]} 13... Rb8 {[%clk 0:08:34]} 14. a4
{[%clk 0:07:57.4]} 14... c5 {[%clk 0:08:25]} 15. axb5 {[%clk 0:07:44.4]} 15...
axb5 {[%clk 0:08:26.9]} 16. O-O {[%clk 0:07:39]} 16... f6 {[%clk 0:08:13.1]} 17.
exf6 {[%clk 0:07:32.6]} 17... Nxf6 {[%clk 0:08:13.4]} 18. Qf2 {[%clk 0:06:22.4]}
18... Bd7 {[%clk 0:05:42.4]} 19. Ne4 {[%clk 0:06:01.8]} 19... Nxe4 {[%clk
0:05:04.9]} 20. Bxe4 {[%clk 0:06:03.7]} 20... Bc6 {[%clk 0:05:05.3]} 21. Bxc6
{[%clk 0:05:34.9]} 21... Qxc6 {[%clk 0:05:04.6]} 22. Ra7 {[%clk 0:05:35.6]}
22... Rf7 {[%clk 0:04:42.3]} 23. Rfa1 {[%clk 0:04:54.7]} 23... h6 {[%clk
0:04:33.8]} 24. Qe2 {[%clk 0:03:59.3]} 24... Qe4 {[%clk 0:04:15.8]} 25. Qf2
{[%clk 0:03:02.2]} 25... c4 {[%clk 0:04:03.4]} 26. Re1 {[%clk 0:02:36.5]} 26...
Qf5 {[%clk 0:04:01.9]} 27. Qe2 {[%clk 0:02:20.1]} 27... Rbf8 {[%clk 0:03:37.3]}
28. h3 {[%clk 0:02:21]} 28... e5 {[%clk 0:03:33.6]} 29. Rxe7 {[%clk 0:02:03.7]}
29... Rxe7 {[%clk 0:03:31.8]} 30. Bc5 {[%clk 0:02:04.8]} 30... Rfe8 {[%clk
0:01:46.3]} 31. Bxe7 {[%clk 0:02:05.8]} 31... Rxe7 {[%clk 0:01:48.2]} 32. fxe5
{[%clk 0:02:07]} 32... Re6 {[%clk 0:01:49.4]} 33. c3 {[%clk 0:02:04.2]} 33... h5
{[%clk 0:01:23]} 34. Qe4 {[%clk 0:02:02.4]} 34... Qxe4 {[%clk 0:01:18.3]} 35.
Rxe4 {[%clk 0:02:02.9]} 35... Kf7 {[%clk 0:01:20.2]} 36. Kf2 {[%clk 0:01:59.6]}
36... Ra6 {[%clk 0:01:08.3]} 37. Kf3 {[%clk 0:01:51.3]} 37... Ke6 {[%clk
0:00:58.1]} 38. Kf4 {[%clk 0:01:46.4]} 38... Ra2 {[%clk 0:00:58]} 39. Re2 {[%clk
0:01:44.7]} 39... b4 {[%clk 0:00:59.3]} 40. Rd2 {[%clk 0:01:37.9]} 40... bxc3
{[%clk 0:00:54.1]} 41. Rd6+ {[%clk 0:01:38.9]} 41... Ke7 {[%clk 0:00:54.8]} 42.
bxc3 {[%clk 0:01:38.2]} 42... Rxg2 {[%clk 0:00:47.8]} 43. Rc6 {[%clk 0:01:25.9]}
43... Rf2+ {[%clk 0:00:37.3]} 44. Kg3 {[%clk 0:00:27.7]} 44... Re2 {[%clk
0:00:32.5]} 45. Rxc4 {[%clk 0:00:25.7]} 45... Rxe5 {[%clk 0:00:32.8]} 46. Kf4
{[%clk 0:00:11.8]} 46... Re1 {[%clk 0:00:33.1]} 47. Kg5 {[%clk 0:00:10.6]} 47...
Re5+ {[%clk 0:00:32.5]} 48. Kf4 {[%clk 0:00:11.6]} 48... Ra5 {[%clk 0:00:31.9]}
49. Rc7+ {[%clk 0:00:09.2]} 49... Kf6 {[%clk 0:00:32.8]} 50. Rc6+ {[%clk
0:00:10.3]} 50... Kf7 {[%clk 0:00:33.8]} 51. h4 {[%clk 0:00:10.7]} 51... g6
{[%clk 0:00:27]} 52. Rc7+ {[%clk 0:00:10.7]} 52... Kf6 {[%clk 0:00:26.4]} 53.
Rc6+ {[%clk 0:00:12]} 53... Kf7 {[%clk 0:00:27.4]} 54. c4 {[%clk 0:00:11.5]}
54... Rf5+ {[%clk 0:00:24.5]} 55. Kg3 {[%clk 0:00:10.9]} 55... g5 {[%clk
0:00:20.3]} 56. hxg5 {[%clk 0:00:11.2]} 56... Rxg5+ {[%clk 0:00:22.2]} 57. Kh4
{[%clk 0:00:12.5]} 57... Rf5 {[%clk 0:00:22.2]} 58. Rc7+ {[%clk 0:00:12.8]}
1/2-1/2

[Event "GrandPrix_29.05"]
[Site "Chess.com"]
[Date "2020.05.29"]
[Round "2"]
[White "Petriashvili02"]
[Black "Kezin_Roman"]
[Result "0-1"]
[WhiteElo "2196"]
[BlackElo "2602"]
[TimeControl "600+2"]
[EndTime "9:57:58 PDT"]
[Termination "Kezin_Roman won by resignation"]

1. d4 {[%clk 0:09:55.1]} 1... d5 {[%clk 0:09:58.8]} 2. c4 {[%clk 0:09:55.2]}
2... e6 {[%clk 0:09:59.6]} 3. Nf3 {[%clk 0:09:56.4]} 3... Nf6 {[%clk 0:10:00.1]}
4. g3 {[%clk 0:09:57.9]} 4... Be7 {[%clk 0:10:01]} 5. Bg2 {[%clk 0:09:59.2]}
5... O-O {[%clk 0:10:01.9]} 6. O-O {[%clk 0:09:57.7]} 6... dxc4 {[%clk
0:10:02.4]} 7. Qc2 {[%clk 0:09:56.5]} 7... b5 {[%clk 0:10:01.6]} 8. a4 {[%clk
0:09:31.8]} 8... b4 {[%clk 0:10:00.5]} 9. Ne5 {[%clk 0:09:18]} 9... Qxd4 {[%clk
0:09:25.1]} 10. Nxc4 {[%clk 0:09:16.9]} 10... c6 {[%clk 0:09:24.1]} 11. Rd1
{[%clk 0:09:05]} 11... Qc5 {[%clk 0:09:22.5]} 12. Be3 {[%clk 0:08:59.3]} 12...
Qh5 {[%clk 0:09:21.3]} 13. h3 {[%clk 0:08:53.7]} 13... Ba6 {[%clk 0:08:27.9]}
14. Nbd2 {[%clk 0:08:24.8]} 14... Nd5 {[%clk 0:08:24.3]} 15. g4 {[%clk
0:07:50.5]} 15... Qg6 {[%clk 0:08:07.3]} 16. Qxg6 {[%clk 0:04:08.3]} 16... hxg6
{[%clk 0:08:06.7]} 17. Kf1 {[%clk 0:04:09.4]} 17... Nd7 {[%clk 0:07:34.2]} 18.
Rac1 {[%clk 0:04:09.3]} 18... Rfc8 {[%clk 0:07:08.6]} 19. Nb3 {[%clk 0:03:45.7]}
19... Bxc4 {[%clk 0:02:11.3]} 20. Rxc4 {[%clk 0:03:47.6]} 20... N7b6 {[%clk
0:02:12.6]} 21. Rc2 {[%clk 0:03:24.1]} 21... Nxa4 {[%clk 0:02:08.7]} 22. Ra1
{[%clk 0:03:23.3]} 22... Nxe3+ {[%clk 0:01:21.1]} 23. fxe3 {[%clk 0:03:23.2]}
23... Nb6 {[%clk 0:01:23]} 24. Bxc6 {[%clk 0:00:17.5]} 24... Rc7 {[%clk
0:01:22.9]} 25. Be4 {[%clk 0:00:18.5]} 25... Rxc2 {[%clk 0:01:16.1]} 26. Bxc2
{[%clk 0:00:19.5]} 26... Nc4 {[%clk 0:01:08.6]} 27. Be4 {[%clk 0:00:15.1]} 27...
Rd8 {[%clk 0:00:38.7]} 28. Rxa7 {[%clk 0:00:15.7]} 28... Bh4 {[%clk 0:00:24.5]}
29. Kg2 {[%clk 0:00:12.1]} 29... Nxb2 {[%clk 0:00:08.2]} 30. Rb7 {[%clk
0:00:12.5]} 30... Be1 {[%clk 0:00:07.8]} 31. Nd4 {[%clk 0:00:11.6]} 31... Nc4
{[%clk 0:00:06.9]} 32. Nc6 {[%clk 0:00:12.3]} 32... Re8 {[%clk 0:00:07.6]} 33.
Ne7+ {[%clk 0:00:12.9]} 33... Kf8 {[%clk 0:00:07.6]} 34. Nc6 {[%clk 0:00:11.6]}
34... Nxe3+ {[%clk 0:00:08.6]} 35. Kf3 {[%clk 0:00:12.9]} 35... Nc4 {[%clk
0:00:07.8]} 36. Bd3 {[%clk 0:00:08]} 36... Nd6 {[%clk 0:00:06.7]} 37. Rb6 {[%clk
0:00:08.1]} 37... Nc8 {[%clk 0:00:06.7]} 38. Rb8 {[%clk 0:00:08.9]} 38... Ne7
{[%clk 0:00:06.9]} 39. Rxe8+ {[%clk 0:00:05.3]} 39... Kxe8 {[%clk 0:00:08.8]}
40. Nxe7 {[%clk 0:00:06.6]} 40... Kxe7 {[%clk 0:00:10.5]} 41. Ke4 {[%clk
0:00:07.5]} 41... b3 {[%clk 0:00:08.5]} 42. Bc4 {[%clk 0:00:05.7]} 42... b2
{[%clk 0:00:09]} 43. Ba2 {[%clk 0:00:07.3]} 43... Kf6 {[%clk 0:00:06.9]} 44. Kd3
{[%clk 0:00:08.4]} 44... Bg3 {[%clk 0:00:06.5]} 45. Kc2 {[%clk 0:00:09.6]} 45...
Be5 {[%clk 0:00:07.1]} 46. Bc4 {[%clk 0:00:10.5]} 46... Kg5 {[%clk 0:00:07.9]}
47. Bb5 {[%clk 0:00:12.1]} 47... Kh4 {[%clk 0:00:06.9]} 48. Be8 {[%clk
0:00:13.2]} 48... f6 {[%clk 0:00:04.3]} 49. Bxg6 {[%clk 0:00:12.3]} 49... Kxh3
{[%clk 0:00:05.7]} 50. Bf7 {[%clk 0:00:13.8]} 50... Kxg4 {[%clk 0:00:06.5]} 51.
Bxe6+ {[%clk 0:00:15.2]} 51... Kf4 {[%clk 0:00:08.1]} 52. Ba2 {[%clk 0:00:13.3]}
52... Ke3 {[%clk 0:00:09.5]} 53. Kd1 {[%clk 0:00:14.6]} 53... g5 {[%clk
0:00:10.6]} 54. Ke1 {[%clk 0:00:16.1]} 54... g4 {[%clk 0:00:10.9]} 55. Bb1
{[%clk 0:00:17.3]} 55... g3 {[%clk 0:00:11.4]} 56. Kf1 {[%clk 0:00:18.8]} 56...
Kd2 {[%clk 0:00:12.6]} 57. Kg2 {[%clk 0:00:20.1]} 57... Kc1 {[%clk 0:00:13.8]}
0-1

[Event "GrandPrix_29.05"]
[Site "Chess.com"]
[Date "2020.05.29"]
[Round "2"]
[White "Spartakus1975"]
[Black "MikaelyanArman1996"]
[Result "1/2-1/2"]
[WhiteElo "2286"]
[BlackElo "2452"]
[TimeControl "600+2"]
[EndTime "9:58:05 PDT"]
[Termination "Game drawn by repetition"]

1. e4 {[%clk 0:09:58]} 1... e5 {[%clk 0:09:58]} 2. Bc4 {[%clk 0:09:49.3]} 2...
Nc6 {[%clk 0:09:53.3]} 3. Nc3 {[%clk 0:09:46.3]} 3... Nf6 {[%clk 0:09:48.2]} 4.
d3 {[%clk 0:09:45.3]} 4... Bb4 {[%clk 0:09:31.5]} 5. Nf3 {[%clk 0:09:42.1]} 5...
d5 {[%clk 0:08:52.5]} 6. exd5 {[%clk 0:09:40.9]} 6... Nxd5 {[%clk 0:08:51.7]} 7.
Bd2 {[%clk 0:09:40.9]} 7... Nxc3 {[%clk 0:07:59]} 8. Bxc3 {[%clk 0:08:42.1]}
8... Bxc3+ {[%clk 0:07:58]} 9. bxc3 {[%clk 0:08:42.2]} 9... O-O {[%clk 0:07:56]}
10. O-O {[%clk 0:08:40.3]} 10... Bg4 {[%clk 0:07:28.1]} 11. Re1 {[%clk
0:08:31.5]} 11... Re8 {[%clk 0:07:00.2]} 12. Rb1 {[%clk 0:07:39.4]} 12... Na5
{[%clk 0:06:05.5]} 13. Bb3 {[%clk 0:06:19.6]} 13... Nxb3 {[%clk 0:06:03]} 14.
Rxb3 {[%clk 0:06:18.6]} 14... b6 {[%clk 0:05:54.5]} 15. Rb4 {[%clk 0:06:09.4]}
15... Bh5 {[%clk 0:04:54]} 16. g4 {[%clk 0:05:32.2]} 16... c5 {[%clk 0:04:43.3]}
17. Rc4 {[%clk 0:05:03.9]} 17... b5 {[%clk 0:04:07.4]} 18. Rce4 {[%clk
0:04:57.9]} 18... f5 {[%clk 0:04:03.5]} 19. Rxe5 {[%clk 0:04:37.9]} 19... Rxe5
{[%clk 0:03:23.5]} 20. Nxe5 {[%clk 0:04:35.2]} 20... fxg4 {[%clk 0:03:15.5]} 21.
Qb1 {[%clk 0:02:57.4]} 21... a6 {[%clk 0:02:52.7]} 22. Qb3+ {[%clk 0:02:54.7]}
22... Kh8 {[%clk 0:02:39.3]} 23. Nf7+ {[%clk 0:02:40.2]} 23... Bxf7 {[%clk
0:02:38.4]} 24. Qxf7 {[%clk 0:02:41.6]} 24... Qg8 {[%clk 0:01:37]} 25. Re7
{[%clk 0:02:36.8]} 25... Rf8 {[%clk 0:01:28.7]} 26. Qxg8+ {[%clk 0:02:32.3]}
26... Kxg8 {[%clk 0:01:30.6]} 27. Re4 {[%clk 0:02:25]} 27... c4 {[%clk
0:00:53.3]} 28. dxc4 {[%clk 0:01:22.9]} 28... Rc8 {[%clk 0:00:53.7]} 29. Rxg4
{[%clk 0:00:59.8]} 29... bxc4 {[%clk 0:00:46.5]} 30. Kf1 {[%clk 0:00:53]} 30...
Kf7 {[%clk 0:00:47.2]} 31. Ke2 {[%clk 0:00:52.6]} 31... Kf6 {[%clk 0:00:37.4]}
32. Ke3 {[%clk 0:00:51.2]} 32... g5 {[%clk 0:00:31.8]} 33. h4 {[%clk 0:00:49.3]}
33... h6 {[%clk 0:00:28.5]} 34. hxg5+ {[%clk 0:00:50]} 34... hxg5 {[%clk
0:00:30.4]} 35. f4 {[%clk 0:00:48.1]} 35... gxf4+ {[%clk 0:00:29.2]} 36. Rxf4+
{[%clk 0:00:49.6]} 36... Ke5 {[%clk 0:00:29.1]} 37. Rh4 {[%clk 0:00:50.5]} 37...
Rg8 {[%clk 0:00:13.1]} 38. Rxc4 {[%clk 0:00:37]} 38... Rg2 {[%clk 0:00:13.5]}
39. Kd3 {[%clk 0:00:36.8]} 39... Kd5 {[%clk 0:00:13.5]} 40. Rc8 {[%clk
0:00:34.8]} 40... Rg3+ {[%clk 0:00:09.3]} 41. Kd2 {[%clk 0:00:35.5]} 41... Rg1
{[%clk 0:00:08.1]} 42. c4+ {[%clk 0:00:28.1]} 42... Kd6 {[%clk 0:00:07]} 43. Kc3
{[%clk 0:00:26.9]} 43... Rg3+ {[%clk 0:00:05.4]} 44. Kb4 {[%clk 0:00:24.8]}
44... Rg2 {[%clk 0:00:06.5]} 45. Kb3 {[%clk 0:00:25.5]} 45... Rg3+ {[%clk
0:00:05.9]} 46. c3 {[%clk 0:00:26.5]} 46... Kd7 {[%clk 0:00:07.3]} 47. Rc5
{[%clk 0:00:24.4]} 47... Rg6 {[%clk 0:00:05.9]} 48. Kb4 {[%clk 0:00:15.4]} 48...
Rg2 {[%clk 0:00:06.5]} 49. a4 {[%clk 0:00:15.4]} 49... Rb2+ {[%clk 0:00:05]} 50.
Ka5 {[%clk 0:00:16.1]} 50... Rb3 {[%clk 0:00:06.3]} 51. Kxa6 {[%clk 0:00:14.5]}
51... Rxc3 {[%clk 0:00:07.6]} 52. a5 {[%clk 0:00:15.6]} 52... Rb3 {[%clk
0:00:06.8]} 53. Rb5 {[%clk 0:00:15.6]} 53... Rc3 {[%clk 0:00:07]} 54. Rc5 {[%clk
0:00:08.1]} 54... Kd6 {[%clk 0:00:06]} 55. Rc8 {[%clk 0:00:08.3]} 55... Kd7
{[%clk 0:00:06.8]} 56. Rc5 {[%clk 0:00:08.4]} 1/2-1/2